Workbook

Sheet Титул
A1: Утверждаю
A2: Директор ОГБПОУ "ДМК"
A5: И.А.Казаченко | O5: УЧЕБНЫЙ ПЛАН
O7: программы подготовки специалистов среднего звена
A10: Приказ № 121 - у от 30.06.2023
O11: Областное государственное бюджетное профессиональное образовательное учреждение "Димитровградский музыкальный колледж"
A15: Рассмотрено Педагогическим Советом Протокол № 08 от 30.06.2023 | O15: наименование образовательного учреждения (организации)
O18: по специальности среднего профессионального образования
O20: 53.02.03 | U20: Инструментальное исполнительство (по видам инструментов) Инструменты народного оркестра(баян, домра, балалайка, аккордеон, гитара (возможно гусли, гармонь)
O21: код | U21: наименование специальности
O22: по программе углубленной подготовки | AE22: на базе | AI22: основного общего образования
O24: квалификация | U24: Артист, преподаватель, концертмейстер
O26: форма обучения | U26: Очная
O28: нормативный срок освоения ППССЗ | AB28: 3г 10м | AI28: год начала подготовки по УП | AS28: 2023
O30: профиль получаемого профессионального образования | AI30: Искусство и культура 53.00.00 Музыкальное искусство
AI31: при реализации программы среднего (полного) общего образования
O33: Приказ об утверждении ФГОС | Z33: от | AB33: 2021-05-17 | AG33: № | AI33: 253

Sheet сводные данные по бюджет време
A1: 2 Сводные данные по бюджету времени
A2: Курс | B2: Обучение по дисциплинам и междисциплинарным курсам | T2: Промежуточная аттестация | AC2: Практики | AX2: ГИА | BD2: Каникулы | BG2: Всего
AC3: Учебная практика | AJ3: Производственная практика (по профилю специальности) | AQ3: Производственная практика (преддипломная) | AX3: Подго- товка | BA3: Прове- дение
B4: Всего | H4: 1 сем | N4: 2 сем | T4: Всего | W4: 1 сем | Z4: 2 сем | AC4: Всего | AF4: 1 сем | AH4: 2 сем | AJ4: Всего | AM4: 1 сем | AO4: 2 сем | AQ4: Всего | AT4: 1 сем | AV4: 2 сем
B5: нед. | E5: час. | H5: нед. | K5: час. | N5: нед. | Q5: час. | T5: нед. | W5: нед. | Z5: нед. | AC5: нед. | AF5: нед. | AH5: нед. | AJ5: нед. | AM5: нед. | AO5: нед. | AQ5: нед. | AT5: нед. | AV5: нед. | AX5: нед. | BA5: нед. | BD5: нед. | BG5: нед.
A6: I | B6: 36 | E6: 1942/1296 | H6: 16 | K6: 864/576 | N6: 20 | Q6: 1078/720 | T6: 4 | W6: 2 | Z6: 2 | AJ6: 1 | AO6: 1 | BD6: 2 | BG6: 43
A7: II | B7: 36 | E7: 1945/1296 | H7: 16 | K7: 864/576 | N7: 20 | Q7: 1081/720 | T7: 4 | W7: 2 | Z7: 2 | AJ7: 2 | AO7: 2 | BD7: 11 | BG7: 53
A8: III | B8: 36 | E8: 1945/1296 | H8: 16 | K8: 864/576 | N8: 20 | Q8: 1081/720 | T8: 4 | W8: 2 | Z8: 2 | AJ8: 2 | AO8: 2 | BD8: 10 | BG8: 52
A9: IV | B9: 35 | E9: 1890/1260 | H9: 16 | K9: 864/576 | N9: 19 | Q9: 1026/684 | T9: 1 | W9: 1 | AQ9: 1 | AT9: 1 | AX9: 1 | BA9: 3 | BD9: 10 | BG9: 51
A10: Всего | B10: 143 | E10: 7722/5148 | K10: 3456/2304 | Q10: 4266/2844 | T10: 13 | AJ10: 5 | AQ10: 1 | AX10: 1 | BA10: 3 | BD10: 33 | BG10: 199

Sheet План
A1: Индекс | B1: Наименование циклов, разделов, дисциплин, профессиональных модулей, МДК, практик | C1: Групповые, мелкогрупповые, индивидуальные формы занятий | D1: Формы промежуточной аттестации | K1: Учебная нагрузка обучающихся, ч. | U1: Распределение по курсам и семестрам | EC1: Максимальная учебная нагрузка
U2: Курс 1 | AI2: Курс 2 | AW2: Курс 3 | BK2: Курс 4 | BY2: Курс 5 | CM2: Курс 6 | DA2: Курс 7 | DO2: Курс 8
D3: Экзамены | E3: Зачеты | F3: Диффер. зачеты | G3: Курсовые проекты (работы) | H3: Итоговые письм. КР | I3: Домашние КР | J3: Другие формы контроля | L3: Максимальная | N3: Самостоятельная | P3: Обязательная | U3: Семестр 1 | AB3: Семестр 2 | AI3: Семестр 3 | AP3: Семестр 4 | AW3: Семестр 5 | BD3: Семестр 6 | BK3: Семестр 7 | BR3: Семестр 8 | BY3: Семестр 9 | CF3: Семестр A | CM3: Семестр B | CT3: Семестр C | DA3: Семестр D | DH3: Семестр E | DO3: Семестр F | DV3: Семестр G
P4: Всего | Q4: в том числе | U4: 26 нед | AB4: 26 нед | AI4: 26 нед | AP4: 26 нед | AW4: 26 нед | BD4: 26 нед | BK4: 26 нед | BR4: 26 нед | BY4: 26 нед | CF4: 26 нед | CM4: 26 нед | CT4: 26 нед | DA4: 26 нед | DH4: 26 нед | DO4: нед | DV4: нед
Q5: Теор. обучение | R5: Лаб. и пр. занятия | T5: Курс. проект. | U5: Максим. | V5: Самост. | W5: Всего | X5: в том числе | AB5: Максим. | AC5: Самост. | AD5: Всего | AE5: в том числе | AI5: Максим. | AJ5: Самост. | AK5: Всего | AL5: в том числе | AP5: Максим. | AQ5: Самост. | AR5: Всего | AS5: в том числе | AW5: Максим. | AX5: Самост. | AY5: Всего | AZ5: в том числе | BD5: Максим. | BE5: Самост. | BF5: Всего | BG5: в том числе | BK5: Максим. | BL5: Самост. | BM5: Всего | BN5: в том числе | BR5: Максим. | BS5: Самост. | BT5: Всего | BU5: в том числе | BY5: Максим. | BZ5: Самост. | CA5: Всего | CB5: в том числе | CF5: Максим. | CG5: Самост. | CH5: Всего | CI5: в том числе | CM5: Максим. | CN5: Самост. | CO5: Всего | CP5: в том числе | CT5: Максим. | CU5: Самост. | CV5: Всего | CW5: в том числе | DA5: Максим. | DB5: Самост. | DC5: Всего | DD5: в том числе | DH5: Максим. | DI5: Самост. | DJ5: Всего | DK5: в том числе | DO5: Максим. | DP5: Самост. | DQ5: Всего | DR5: в том числе | DV5: Максим. | DW5: Самост. | DX5: Всего | DY5: в том числе | EC5: Обяз. часть | ED5: Вар. часть
X6: Теор. обучение | Y6: Лаб. и пр. занятия | Z6: Лаб. занятия | AA6: Курс. проект. | AE6: Теор. обучение | AF6: Лаб. и пр. занятия | AG6: Лаб. занятия | AH6: Курс. проект. | AL6: Теор. обучение | AM6: Лаб. и пр. занятия | AN6: Лаб. занятия | AO6: Курс. проект. | AS6: Теор. обучение | AT6: Лаб. и пр. занятия | AU6: Лаб. занятия | AV6: Курс. проект. | AZ6: Теор. обучение | BA6: Лаб. и пр. занятия | BB6: Лаб. занятия | BC6: Курс. проект. | BG6: Теор. обучение | BH6: Лаб. и пр. занятия | BI6: Лаб. занятия | BJ6: Курс. проект. | BN6: Теор. обучение | BO6: Лаб. и пр. занятия | BP6: Лаб. занятия | BQ6: Курс. проект. | BU6: Теор. обучение | BV6: Лаб. и пр. занятия | BW6: Лаб. занятия | BX6: Курс. проект. | CB6: Теор. обучение | CC6: Лаб. и пр. занятия | CD6: Лаб. занятия | CE6: Курс. проект. | CI6: Теор. обучение | CJ6: Лаб. и пр. занятия | CK6: Лаб. занятия | CL6: Курс. проект. | CP6: Теор. обучение | CQ6: Лаб. и пр. занятия | CR6: Лаб. занятия | CS6: Курс. проект. | CW6: Теор. обучение | CX6: Лаб. и пр. занятия | CY6: Лаб. занятия | CZ6: Курс. проект. | DD6: Теор. обучение | DE6: Лаб. и пр. занятия | DF6: Лаб. занятия | DG6: Курс. проект. | DK6: Теор. обучение | DL6: Лаб. и пр. занятия | DM6: Лаб. занятия | DN6: Курс. проект. | DR6: Теор. обучение | DS6: Лаб. и пр. занятия | DT6: Лаб. занятия | DU6: Курс. проект. | DY6: Теор. обучение | DZ6: Лаб. и пр. занятия | EA6: Лаб. занятия | EB6: Курс. проект.
A7: 1 | B7: 2 | C7: 3 | D7: 4 | E7: 5 | F7: 6 | G7: 6 | H7: 7 | I7: 8 | J7: 7 | K7: 10 | L7: 8 | M7: 12 | N7: 9 | O7: 14 | P7: 10 | Q7: 11 | R7: 12 | S7: 18 | T7: 13 | U7: 20 | V7: 14 | W7: 15 | X7: 16 | Y7: 17 | Z7: 25 | AA7: 18 | AB7: 27 | AC7: 19 | AD7: 20 | AE7: 21 | AF7: 22 | AG7: 32 | AH7: 23 | AI7: 34 | AJ7: 24 | AK7: 25 | AL7: 26 | AM7: 27 | AN7: 39 | AO7: 28 | AP7: 41 | AQ7: 29 | AR7: 30 | AS7: 31 | AT7: 32 | AU7: 46 | AV7: 33 | AW7: 48 | AX7: 34 | AY7: 35 | AZ7: 36 | BA7: 37 | BB7: 53 | BC7: 38 | BD7: 55 | BE7: 39 | BF7: 40 | BG7: 41 | BH7: 42 | BI7: 60 | BJ7: 43 | BK7: 62 | BL7: 44 | BM7: 45 | BN7: 46 | BO7: 47 | BP7: 67 | BQ7: 48 | BR7: 69 | BS7: 49 | BT7: 50 | BU7: 51 | BV7: 52 | BW7: 74 | BX7: 53 | BY7: 76 | BZ7: 77 | CA7: 78 | CB7: 79 | CC7: 80 | CD7: 81 | CE7: 82 | CF7: 83 | CG7: 84 | CH7: 85 | CI7: 86 | CJ7: 87 | CK7: 88 | CL7: 89 | CM7: 90 | CN7: 91 | CO7: 92 | CP7: 93 | CQ7: 94 | CR7: 95 | CS7: 96 | CT7: 97 | CU7: 98 | CV7: 99 | CW7: 100 | CX7: 101 | CY7: 102 | CZ7: 103 | DA7: 104 | DB7: 105 | DC7: 106 | DD7: 107 | DE7: 108 | DF7: 109 | DG7: 110 | DH7: 111 | DI7: 112 | DJ7: 113 | DK7: 114 | DL7: 115 | DM7: 116 | DN7: 117 | DO7: 118 | DP7: 119 | DQ7: 120 | DR7: 121 | DS7: 122 | DT7: 123 | DU7: 124 | DV7: 125 | DW7: 126 | DX7: 127 | DY7: 128 | DZ7: 129 | EA7: 130 | EB7: 131 | EC7: 132 | ED7: 54
B8: час/нед | U8: 31.5 | W8: =W9/16 -> 21 | AB8: 31.5 | AD8: =AD9/20 -> 21 | AI8: 22.5 | AK8: =AK9/16 -> 15 | AP8: 22.5 | AR8: =AR9/20 -> 15 | AW8: 4.5 | AY8: 3 | BD8: 4.5 | BF8: 3 | BY8: NaN | CA8: NaN | CF8: NaN | CH8: NaN | CM8: NaN | CO8: NaN | CT8: NaN | CV8: NaN | DA8: NaN | DC8: NaN | DH8: NaN | DJ8: NaN | DO8: NaN | DQ8: NaN | DV8: NaN | DX8: NaN
A9: ОУЦ.00 | B9: Общеобразовательный учебный цикл | D9: 3 | E9: 4 | F9: 6 | J9: 14 | L9: 2106 | M9: 0 | N9: 702 | O9: 0 | P9: 1404 | Q9: 1276 | R9: 128 | U9: 504 | V9: 168 | W9: 336 | X9: 320 | Y9: 16 | AA9: 0 | AC9: 210 | AD9: 420 | AE9: 380 | AF9: 40 | AH9: 0 | AJ9: 120 | AK9: 240 | AL9: 208 | AM9: 32 | AO9: 0 | AQ9: 150 | AR9: 300 | AS9: 260 | AT9: 40 | AV9: 0 | EC9: 1404
A10: ОУП.00 | B10: Обязательный учебные предметы | D10: 3 | E10: 4 | F10: 6 | J10: 14 | L10: 1134 | M10: 0 | N10: 378 | O10: 0 | P10: 756 | Q10: 628 | R10: 128 | U10: 264 | V10: 88 | W10: 176 | X10: 160 | Y10: 16 | Z10: 0 | AA10: 0 | AB10: 330 | AC10: 110 | AD10: 220 | AE10: 180 | AF10: 40 | AG10: 0 | AH10: 0 | AI10: 240 | AJ10: 80 | AK10: 160 | AL10: 128 | AM10: 32 | AN10: 0 | AO10: 0 | AP10: 300 | AQ10: 100 | AR10: 200 | AS10: 160 | AT10: 40 | AU10: 0 | AV10: 0 | AX10: =SUM(AX14:AX19) -> 0 | AY10: =SUM(AY14:AY19) -> 0 | AZ10: =SUM(AZ14:AZ19) -> 0 | BA10: =SUM(BA14:BA19) -> 0 | BC10: =SUM(BC14:BC19) -> 0 | BE10: =SUM(BE14:BE19) -> 0 | BF10: =SUM(BF14:BF19) -> 0 | BG10: =SUM(BG14:BG19) -> 0 | BH10: =SUM(BH14:BH19) -> 0 | BJ10: =SUM(BJ14:BJ19) -> 0 | BL10: =SUM(BL14:BL19) -> 0 | BM10: =SUM(BM14:BM19) -> 0 | BN10: =SUM(BN14:BN19) -> 0 | BO10: =SUM(BO14:BO19) -> 0 | BQ10: =SUM(BQ14:BQ19) -> 0 | BS10: =SUM(BS14:BS19) -> 0 | BT10: =SUM(BT14:BT19) -> 0 | BU10: =SUM(BU14:BU19) -> 0 | BV10: =SUM(BV14:BV19) -> 0 | BX10: =SUM(BX14:BX19) -> 0 | EC10: 756 | ED10: =SUM(ED14:ED19) -> 0
A11: ОУП.01 | B11: Русский язык | C11: гр | D11: 4 | J11: 123 | L11: =N11+P11 -> 108 | N11: =V11+AC11+AJ11+AQ11+AX11+BE11+BL11+BS11 -> 36 | P11: =W11+AD11+AK11+AR11+AY11+BF11+BM11+BT11 -> 72 | Q11: =X11+AE11+AL11+AS11+AZ11+BG11+BN11+BU11 -> 72 | R11: =Y11+AF11+AM11+AT11+BA11+BH11+BO11+BV11 -> 0 | U11: 24 | V11: 8 | W11: 16 | X11: 16 | AB11: 30 | AC11: 10 | AD11: 20 | AE11: 20 | AI11: 24 | AJ11: 8 | AK11: 16 | AL11: 16 | AP11: 30 | AQ11: 10 | AR11: 20 | AS11: 20 | EC11: 72
A12: ОУП.02 | B12: Литература | C12: гр | D12: 4 | J12: 123 | L12: =N12+P12 -> 132 | N12: =V12+AC12+AJ12+AQ12+AX12+BE12+BL12+BS12 -> 44 | P12: =W12+AD12+AK12+AR12+AY12+BF12+BM12+BT12 -> 88 | Q12: =X12+AE12+AL12+AS12+AZ12+BG12+BN12+BU12 -> 88 | R12: =Y12+AF12+AM12+AT12+BA12+BH12+BO12+BV12 -> 0 | U12: 48 | V12: 16 | W12: 32 | X12: 32 | AB12: 30 | AC12: 10 | AD12: 20 | AE12: 20 | AI12: 48 | AJ12: 8 | AK12: 16 | AL12: 16 | AP12: 60 | AQ12: 10 | AR12: 20 | AS12: 20 | EC12: 124
A13: ОУП.03 | B13: Родная литература | C13: гр | J13: 4 | L13: 54 | N13: 18 | P13: 36 | Q13: 36 | AJ13: 8 | AK13: 16 | AL13: 16 | AQ13: 10 | AR13: 20 | AS13: 20
A14: ОУП.04 | B14: Иностранный язык | C14: мг | F14: 34 | J14: 12 | L14: =N14+P14 -> 192 | N14: =V14+AC14+AJ14+AQ14+AX14+BE14+BL14+BS14 -> 64 | P14: =W14+AD14+AK14+AR14+AY14+BF14+BM14+BT14 -> 128 | Q14: =X14+AE14+AL14+AS14+AZ14+BG14+BN14+BU14 -> 0 | R14: =Y14+AF14+AM14+AT14+BA14+BH14+BO14+BV14 -> 128 | U14: 24 | V14: 8 | W14: 16 | Y14: 16 | AB14: 60 | AC14: 20 | AD14: 40 | AF14: 40 | AI14: 48 | AJ14: 16 | AK14: 32 | AM14: 32 | AP14: 60 | AQ14: 20 | AR14: 40 | AT14: 40 | EC14: 128
A15: ОУП.05 | B15: Обществознание | C15: гр | F15: 4 | L15: 60 | N15: 20 | P15: 40 | Q15: 40 | R15: 0 | AP15: 60 | AQ15: 20 | AR15: 40 | AS15: 40 | EC15: 40
A16: ОУП.06 | B16: Математика | C16: мг | D16: 3 | J16: 12 | L16: 102 | N16: 34 | P16: =W16+AD16+AK16+AR16+AY16+BF16+BM16+BT16 -> 68 | Q16: 68 | R16: 0 | U16: 24 | V16: 8 | W16: 16 | X16: 16 | AB16: 30 | AC16: 10 | AD16: 20 | AE16: 20 | AI16: 48 | AJ16: 16 | AK16: 32 | AL16: 32 | EC16: 68
A17: ОУП.07 | B17: Естествознание | C17: гр | F17: 2 | J17: 1 | L17: =N17+P17 -> 108 | N17: =V17+AC17+AJ17+AQ17+AX17+BE17+BL17+BS17 -> 36 | P17: 72 | Q17: 72 | R17: 0 | U17: 48 | V17: 16 | W17: 32 | X17: 32 | AB17: 60 | AC17: 20 | AD17: 40 | AE17: 40 | EC17: 72
A18: ОУП.08 | B18: Астрономия | C18: гр | F18: 4 | J18: 3 | L18: =N18+P18 -> 54 | N18: =V18+AC18+AJ18+AQ18+AX18+BE18+BL18+BS18 -> 18 | P18: 36 | Q18: 36 | R18: 0 | AI18: 24 | AJ18: 8 | AK18: 16 | AL18: 16 | AP18: 30 | AQ18: 10 | AR18: 20 | AS18: 20 | EC18: 36
A19: ОУП.09 | B19: Основы безопасности жизнедеятельности | C19: гр | F19: 2 | J19: 1 | L19: 108 | N19: 36 | P19: 72 | Q19: 72 | R19: 0 | U19: 48 | V19: 16 | W19: 32 | X19: 32 | AB19: 60 | AC19: 20 | AD19: 40 | AE19: 40 | EC19: 72
A20: ОУП.10 | B20: Физическая культура | C20: гр | E20: 1234 | L20: 216 | N20: 72 | P20: 144 | Q20: 144 | R20: 0 | U20: 48 | V20: 16 | W20: 32 | X20: 32 | AB20: 60 | AC20: 20 | AD20: 40 | AE20: 40 | AI20: 48 | AJ20: 16 | AK20: 32 | AL20: 32 | AP20: 60 | AQ20: 20 | AR20: 40 | AS20: 40 | EC20: 144
A21: ПУП.00 | B21: Профильные учебные предметы | D21: 8 | E21: 0 | F21: 1 | G21: =LEN(#REF!)+LEN(#REF!)+LEN(G26)+LEN(#REF!)+LEN(#REF!)+LEN(#REF!)+LEN(G27) ->  | H21: =LEN(#REF!)+LEN(#REF!)+LEN(H26)+LEN(#REF!)+LEN(#REF!)+LEN(#REF!)+LEN(H27) ->  | I21: =LEN(#REF!)+LEN(#REF!)+LEN(I26)+LEN(#REF!)+LEN(#REF!)+LEN(#REF!)+LEN(I27) ->  | J21: 7 | L21: 972 | M21: =SUM(M21:M27) -> 0 | N21: 324 | O21: =SUM(O21:O27) -> 0 | P21: 648 | Q21: 648 | R21: =SUM(R21:R27) -> 0 | U21: 240 | V21: 80 | W21: 160 | X21: 160 | Y21: =SUM(Y21:Y27) -> 0 | Z21: =SUM(Z21:Z27) -> 0 | AA21: =SUM(AA21:AA27) -> 0 | AB21: =SUM(AB21:AB27) -> 360 | AC21: 100 | AD21: 200 | AE21: 200 | AF21: =SUM(AF21:AF27) -> 0 | AG21: =SUM(AG21:AG27) -> 0 | AH21: =SUM(AH21:AH27) -> 0 | AI21: =SUM(AI21:AI27) -> 192 | AJ21: 40 | AK21: 80 | AL21: 80 | AM21: =SUM(AM21:AM27) -> 0 | AN21: =SUM(AN21:AN27) -> 0 | AO21: =SUM(AO21:AO27) -> 0 | AP21: =SUM(AP21:AP27) -> 240 | AQ21: 50 | AR21: 100 | AS21: 100 | AT21: =SUM(AT21:AT27) -> 0 | AU21: 0 | AV21: 0 | AW21: 72 | AX21: 24 | AY21: 48 | AZ21: 48 | BA21: 0 | BB21: 0 | BC21: 0 | BD21: 90 | BE21: 30 | BF21: 60 | BG21: 60 | BH21: 0 | BI21: 0 | BJ21: 0 | BK21: 0 | BL21: 0 | BM21: 0 | BN21: 0 | BO21: 0 | BP21: 0 | BQ21: 0 | BR21: 0 | BS21: 0 | BT21: 0 | BU21: 0 | BV21: 0 | BW21: 0 | BX21: 0 | BY21: 0 | BZ21: =SUM(BZ21:BZ27) -> 0 | CA21: 0 | CB21: 0 | CC21: 0 | CD21: 0 | CE21: 0 | CF21: 0 | CG21: 0 | CH21: 0 | CI21: 0 | CJ21: 0 | CK21: 0 | CL21: 0 | CM21: 0 | CN21: 0 | CO21: 0 | CP21: 0 | CQ21: 0 | CR21: 0 | CS21: 0 | CT21: 0 | CU21: 0 | CV21: 0 | CW21: 0 | CX21: 0 | CY21: 0 | CZ21: 0 | DA21: 0 | DB21: 0 | DC21: 0 | DD21: 0 | DE21: 0 | DF21: =SUM(DF21:DF27) -> 0 | DG21: 0 | DH21: 0 | DI21: 0 | DJ21: 0 | DK21: 0 | DL21: 0 | DM21: 0 | DN21: 0 | DO21: 0 | DP21: 0 | DQ21: 0 | DR21: 0 | DS21: 0 | DT21: 0 | DU21: 0 | DV21: 0 | DW21: 0 | DX21: 0 | DY21: 0 | DZ21: 0 | EA21: 0 | EB21: 0 | EC21: 648 | ED21: =SUM(ED21:ED27) -> 0
A22: ПУП.01 | B22: История мировой культуры | C22: гр | F22: 4 | J22: 123 | L22: =N22+P22 -> 216 | N22: =V22+AC22+AJ22+AQ22+AX22+BE22+BL22+BS22 -> 72 | P22: =W22+AD22+AK22+AR22+AY22+BF22+BM22+BT22 -> 144 | Q22: 144 | R22: 0 | U22: 48 | V22: 16 | W22: 32 | X22: 32 | AB22: 60 | AC22: 20 | AD22: 40 | AE22: 40 | AI22: 48 | AJ22: 16 | AK22: 32 | AL22: 32 | AP22: 60 | AQ22: 20 | AR22: 40 | AS22: 40 | EC22: 144
A23: ПУП.02 | B23: История | C23: гр | D23: 2 | J23: 1 | L23: =N23+P23 -> 216 | N23: =V23+AC23+AJ23+AQ23+AX23+BE23+BL23+BS23 -> 72 | P23: =W23+AD23+AK23+AR23+AY23+BF23+BM23+BT23 -> 144 | Q23: =X23+AE23+AL23+AS23+AZ23+BG23+BN23+BU23 -> 144 | R23: =Y23+AF23+AM23+AT23+BA23+BH23+BO23+BV23 -> 0 | U23: 96 | V23: 32 | W23: 64 | X23: 64 | AB23: 120 | AC23: 40 | AD23: 80 | AE23: 80 | EC23: 144
A24: ПУП.03 | B24: Народная музыкальная культура | C24: гр | D24: 2 | J24: 1 | L24: =N24+P24 -> 54 | N24: =V24+AC24+AJ24+AQ24+AX24+BE24+BL24+BS24 -> 18 | P24: =W24+AD24+AK24+AR24+AY24+BF24+BM24+BT24 -> 36 | Q24: 36 | R24: 0 | U24: 24 | V24: 8 | W24: 16 | X24: 16 | AB24: 30 | AC24: 10 | AD24: 20 | AE24: 20 | EC24: 36
A25: ПУП.04 | B25: Музыкальная литература (зарубежная и отечественная) | C25: мг | D25: 1246 | J25: 35 | L25: 486 | N25: 162 | P25: 324 | Q25: 324 | R25: 0 | U25: 72 | V25: 24 | W25: 48 | X25: 48 | AB25: 90 | AC25: 30 | AD25: 60 | AE25: 60 | AI25: 72 | AJ25: 24 | AK25: 48 | AL25: 48 | AP25: 90 | AQ25: 30 | AR25: 60 | AS25: 60 | AW25: 72 | AX25: 24 | AY25: 48 | AZ25: 48 | BD25: 90 | BE25: 30 | BF25: 60 | BG25: 60 | EC25: 324
B26: час/нед | U26: 22.5 | W26: =(W27+W33+W66)/16 -> 15 | AB26: 22.4 | AD26: =(AD27+AD33+AD66)/20 -> 15 | AI26: 31.5 | AK26: =(AK27+AK33+AK66)/16 -> 21 | AP26: 31.5 | AR26: =(AR27+AR33+AR66)/20 -> 21 | AW26: 49.5 | AY26: =(AY27+AY33+AY66)/16 -> 33 | BD26: 49.5 | BF26: =(BF27+BF33+BF66)/20 -> 33 | BK26: 54 | BM26: =(BM27+BM33+BM66)/16 -> 36 | BR26: 54 | BT26: =(BT27+BT33+BT66)/19 -> 36 | BY26: NaN | CA26: NaN | CF26: NaN | CH26: NaN | CM26: NaN | CO26: NaN | CT26: NaN | CV26: NaN | DA26: NaN | DC26: NaN | DH26: NaN | DJ26: NaN | DO26: NaN | DQ26: NaN | DV26: NaN | DX26: NaN
A27: ОГСЭ.00 | B27: Общий гуманитарный и социально-экономический цикл | D27: =LEN(D28)+LEN(D29)+LEN(D30)+LEN(D31)+LEN(D32) -> 1 | E27: =LEN(E28)+LEN(E29)+LEN(E30)+LEN(E31)+LEN(E32) -> 3 | F27: =LEN(F28)+LEN(F29)+LEN(F30)+LEN(F31)+LEN(F32) -> 3 | J27: =LEN(J28)+LEN(J29)+LEN(J30)+LEN(J31)+LEN(J32) -> 3 | L27: =SUM(L28:L32) -> 531 | M27: =SUM(M28:M32) -> 0 | N27: 177 | O27: 0 | P27: 354 | Q27: 200 | R27: 154 | V27: =SUM(V28:V32) -> 0 | W27: =SUM(W28:W32) -> 0 | X27: =SUM(X28:X32) -> 0 | Y27: =SUM(Y28:Y32) -> 0 | AA27: =SUM(AA28:AA32) -> 0 | AC27: =SUM(AC28:AC32) -> 0 | AD27: =SUM(AD28:AD32) -> 0 | AE27: =SUM(AE28:AE32) -> 0 | AF27: =SUM(AF28:AF32) -> 0 | AH27: =SUM(AH28:AH32) -> 0 | AI27: 59 | AJ27: =SUM(AJ28:AJ32) -> 24 | AK27: =SUM(AK28:AK32) -> 48 | AL27: =SUM(AL28:AL32) -> 48 | AM27: =SUM(AM28:AM32) -> 0 | AO27: =SUM(AO28:AO32) -> 0 | AQ27: =SUM(AQ28:AQ32) -> 0 | AR27: =SUM(AR28:AR32) -> 0 | AS27: =SUM(AS28:AS32) -> 0 | AT27: =SUM(AT28:AT32) -> 0 | AV27: =SUM(AV28:AV32) -> 0 | AW27: 167 | AX27: =SUM(AX28:AX32) -> 56 | AY27: =SUM(AY28:AY32) -> 112 | AZ27: =SUM(AZ28:AZ32) -> 56 | BA27: =SUM(BA28:BA32) -> 56 | BC27: =SUM(BC28:BC32) -> 0 | BD27: 108 | BE27: =SUM(BE28:BE32) -> 30 | BF27: =SUM(BF28:BF32) -> 60 | BG27: =SUM(BG28:BG32) -> 0 | BH27: =SUM(BH28:BH32) -> 60 | BJ27: =SUM(BJ28:BJ32) -> 0 | BK27: 145 | BL27: =SUM(BL28:BL32) -> 48 | BM27: =SUM(BM28:BM32) -> 96 | BN27: =SUM(BN28:BN32) -> 96 | BO27: =SUM(BO28:BO32) -> 0 | BQ27: =SUM(BQ28:BQ32) -> 0 | BR27: 52 | BS27: =SUM(BS28:BS32) -> 19 | BT27: =SUM(BT28:BT32) -> 38 | BU27: =SUM(BU28:BU32) -> 0 | BV27: =SUM(BV28:BV32) -> 38 | BX27: =SUM(BX28:BX32) -> 0 | EC27: =SUM(EC28:EC32) -> 354 | ED27: =SUM(ED28:ED32) -> 0
A28: ОГСЭ.01 | B28: Основы философии | C28: гр | F28: 5 | L28: =N28+P28 -> 72 | N28: 24 | P28: =W28+AD28+AK28+AR28+AY28+BF28+BM28+BT28 -> 48 | Q28: 48 | R28: 0 | AW28: 59 | AX28: 24 | AY28: 48 | AZ28: 48 | EC28: 48
A29: ОГСЭ.02 | B29: История | C29: гр | D29: 3 | L29: =N29+P29 -> 72 | N29: 24 | P29: 48 | Q29: 48 | R29: 0 | AI29: 59 | AJ29: 24 | AK29: 48 | AL29: 48 | EC29: 48
A30: ОГСЭ.03 | B30: Психология общения | C30: гр | F30: 7 | L30: =N30+P30 -> 72 | N30: 24 | P30: 48 | Q30: 48 | R30: 0 | BK30: 59 | BL30: 24 | BM30: 48 | BN30: 48 | EC30: 48
A31: ОГСЭ.04 | B31: Иностранный язык | C31: мг | F31: 8 | J31: 567 | L31: =N31+P31 -> 159 | N31: =V31+AC31+AJ31+AQ31+AX31+BE31+BL31+BS31 -> 53 | P31: 106 | Q31: 24 | R31: 82 | AW31: 44 | AX31: 16 | AY31: 32 | AZ31: 8 | BA31: 24 | BD31: 28 | BE31: 10 | BF31: 20 | BH31: 20 | BK31: 22 | BL31: 8 | BM31: 16 | BN31: 16 | BR31: 52 | BS31: 19 | BT31: 38 | BV31: 38 | EC31: 106
A32: ОГСЭ.05 | B32: Физическая культура | C32: гр | E32: 567 | L32: =N32+P32 -> 156 | N32: 52 | P32: 104 | Q32: 32 | R32: 72 | AW32: 64 | AX32: 16 | AY32: 32 | BA32: 32 | BD32: 80 | BE32: 20 | BF32: 40 | BH32: 40 | BK32: 64 | BL32: 16 | BM32: 32 | BN32: 32 | EC32: 104
A33: П.00 | B33: Профессиональный учебный цикл | D33: 18 | E33: 1 | F33: 13 | J33: 51 | L33: =L34+L43 -> 4046 | N33: =N34+N43 -> 1340 | P33: =P34+P43 -> 2706 | Q33: =Q34+Q43 -> 664 | R33: =R34+R43 -> 2042 | V33: =V34+V43 -> 104 | W33: =W34+W43 -> 208 | X33: =X34+X43 -> 0 | Y33: =Y34+Y43 -> 208 | AA33: =AA34+AA43 -> 0 | AC33: =AC34+AC43 -> 120 | AD33: =AD34+AD43 -> 240 | AE33: =AE34+AE43 -> 0 | AF33: =AF34+AF43 -> 240 | AH33: =AH34+AH43 -> 0 | AJ33: =AJ34+AJ43 -> 120 | AK33: =AK34+AK43 -> 240 | AL33: =AL34+AL43 -> 48 | AM33: =AM34+AM43 -> 192 | AO33: =AO34+AO43 -> 0 | AQ33: =AQ34+AQ43 -> 170 | AR33: =AR34+AR43 -> 340 | AS33: =AS34+AS43 -> 40 | AT33: =AT34+AT43 -> 300 | AV33: =AV34+AV43 -> 0 | AX33: =AX34+AX43 -> 160 | AY33: =AY34+AY43 -> 320 | AZ33: =AZ34+AZ43 -> 160 | BA33: =BA34+BA43 -> 160 | BC33: =BC34+BC43 -> 0 | BE33: =BE34+BE43 -> 235 | BF33: =BF34+BF43 -> 480 | BG33: =BG34+BG43 -> 120 | BH33: =BH34+BH43 -> 360 | BJ33: =BJ34+BJ43 -> 0 | BL33: =BL34+BL43 -> 192 | BM33: =BM34+BM43 -> 384 | BN33: =BN34+BN43 -> 144 | BO33: =BO34+BO43 -> 240 | BQ33: =BQ34+BQ43 -> 0 | BS33: =BS34+BS43 -> 239 | BT33: =BT34+BT43 -> 494 | BU33: =BU34+BU43 -> 152 | BV33: =BV34+BV43 -> 342 | BX33: =BX34+BX43 -> 0 | EC33: =EC34+EC43 -> 2130 | ED33: =ED34+ED43 -> 576
A34: ОП.00 | B34: Общепрофессиональные дисциплины | D34: 6 | E34: 0 | F34: 6 | J34: 12 | L34: =SUM(L35:L42) -> 1247 | M34: 0 | N34: 412 | O34: 0 | P34: 835 | Q34: 173 | R34: 662 | U34: 96 | V34: =SUM(V35:V42) -> 32 | W34: =SUM(W35:W42) -> 64 | X34: =SUM(X35:X42) -> 0 | Y34: =SUM(Y35:Y42) -> 64 | AA34: =SUM(AA35:AA42) -> 0 | AC34: =SUM(AC35:AC42) -> 40 | AD34: =SUM(AD35:AD42) -> 80 | AE34: =SUM(AE35:AE42) -> 0 | AF34: =SUM(AF35:AF42) -> 80 | AH34: =SUM(AH35:AH42) -> 0 | AJ34: =SUM(AJ35:AJ42) -> 32 | AK34: =SUM(AK35:AK42) -> 64 | AL34: =SUM(AL35:AL42) -> 0 | AM34: =SUM(AM35:AM42) -> 64 | AO34: =SUM(AO35:AO42) -> 0 | AQ34: =SUM(AQ35:AQ42) -> 40 | AR34: =SUM(AR35:AR42) -> 80 | AS34: =SUM(AS35:AS42) -> 0 | AT34: =SUM(AT35:AT42) -> 80 | AV34: =SUM(AV35:AV42) -> 0 | AX34: =SUM(AX35:AX42) -> 40 | AY34: =SUM(AY35:AY42) -> 80 | AZ34: =SUM(AZ35:AZ42) -> 16 | BA34: =SUM(BA35:BA42) -> 64 | BC34: =SUM(BC35:BC42) -> 0 | BE34: =SUM(BE35:BE42) -> 55 | BF34: =SUM(BF35:BF42) -> 120 | BG34: =SUM(BG35:BG42) -> 20 | BH34: =SUM(BH35:BH42) -> 100 | BJ34: =SUM(BJ35:BJ42) -> 0 | BL34: =SUM(BL35:BL42) -> 88 | BM34: =SUM(BM35:BM42) -> 176 | BN34: =SUM(BN35:BN42) -> 80 | BO34: =SUM(BO35:BO42) -> 96 | BQ34: =SUM(BQ35:BQ42) -> 0 | BS34: =SUM(BS35:BS42) -> 85 | BT34: =SUM(BT35:BT42) -> 171 | BU34: =SUM(BU35:BU42) -> 57 | BV34: =SUM(BV35:BV42) -> 114 | BX34: =SUM(BX35:BX42) -> 0 | EC34: =SUM(EC35:EC42) -> 815 | ED34: =SUM(ED35:ED42) -> 20
A35: ОП.01 | B35: Музыкальная литература (зарубежная и отечественная) | C35: мг | D35: 8 | J35: 7 | L35: =N35+P35 -> 157 | N35: =V35+AC35+AJ35+AQ35+AX35+BE35+BL35+BS35 -> 52 | P35: =W35+AD35+AK35+AR35+AY35+BF35+BM35+BT35 -> 105 | Q35: =X35+AE35+AL35+AS35+AZ35+BG35+BN35+BU35 -> 105 | R35: =Y35+AF35+AM35+AT35+BA35+BH35+BO35+BV35 -> 0 | BK35: 72 | BL35: 24 | BM35: 48 | BN35: 48 | BR35: 85 | BS35: 28 | BT35: 57 | BU35: 57 | EC35: 105
A36: ОП.02 | B36: Сольфеджио | C36: мг | D36: 47 | F36: 28 | J36: 1356 | L36: =N36+P36 -> 429 | N36: =V36+AC36+AJ36+AQ36+AX36+BE36+BL36+BS36 -> 143 | P36: =W36+AD36+AK36+AR36+AY36+BF36+BM36+BT36 -> 286 | Q36: =X36+AE36+AL36+AS36+AZ36+BG36+BN36+BU36 -> 0 | R36: =Y36+AF36+AM36+AT36+BA36+BH36+BO36+BV36 -> 286 | U36: 48 | V36: 16 | W36: 32 | Y36: 32 | AB36: 60 | AC36: 20 | AD36: 40 | AF36: 40 | AI36: 48 | AJ36: 16 | AK36: 32 | AM36: 32 | AP36: 60 | AQ36: 20 | AR36: 40 | AT36: 40 | AW36: 48 | AX36: 16 | AY36: 32 | BA36: 32 | BD36: 60 | BE36: 20 | BF36: 40 | BH36: 40 | BK36: 48 | BL36: 16 | BM36: 32 | BO36: 32 | BS36: 19 | BT36: 38 | BV36: 38 | EC36: 286
B37: Сольфеджио индивидуальное | C37: мг | J37: 6 | L37: 25 | N37: 5 | P37: 20 | Q37: 0 | R37: 20 | U37: 48 | AB37: 60 | AI37: 48 | AP37: 60 | AW37: 48 | BD37: 60 | BE37: 5 | BF37: 20 | BH37: 20 | BK37: 48 | ED37: 20
A38: ОП.03 | B38: Элементарная теория музыки | C38: мг | D38: 2 | F38: 1 | L38: 108 | N38: 36 | P38: 72 | Q38: 0 | R38: 72 | U38: 48 | V38: 16 | W38: 32 | Y38: 32 | AB38: 60 | AC38: 20 | AD38: 40 | AF38: 40 | EC38: 72
A39: ОП.04 | B39: Гармония | C39: мг | D39: 57 | J39: 346 | L39: 264 | N39: 88 | P39: 176 | Q39: 0 | R39: 176 | AI39: 48 | AJ39: 16 | AK39: 32 | AM39: 32 | AP39: 60 | AQ39: 20 | AR39: 40 | AT39: 40 | AW39: 48 | AX39: 16 | AY39: 32 | BA39: 32 | BD39: 60 | BE39: 20 | BF39: 40 | BH39: 40 | BK39: 48 | BL39: 16 | BM39: 32 | BO39: 32 | EC39: 176
A40: ОП.05 | B40: Анализ музыкальных произведений | C40: мг | F40: 8 | L40: 57 | N40: 19 | P40: 38 | Q40: 0 | R40: 38 | BK40: 48 | BR40: 57 | BS40: 19 | BT40: 38 | BV40: 38 | EC40: 38
A41: ОП.06 | B41: Музыкальная информатика | C41: мг | F41: 8 | J41: 7 | L41: 105 | N41: 35 | P41: 70 | Q41: 0 | R41: 70 | BL41: 16 | BM41: 32 | BO41: 32 | BR41: 114 | BS41: 19 | BT41: 38 | BV41: 38 | EC41: 70
A42: ОП.07 | B42: Безопасность жизнедеятельности | C42: гр | F42: 7 | J42: 56 | L42: 102 | N42: 34 | P42: 68 | Q42: 68 | R42: 0 | AW42: 24 | AX42: 8 | AY42: 16 | AZ42: 16 | BD42: 30 | BE42: 10 | BF42: 20 | BG42: 20 | BK42: 48 | BL42: 16 | BM42: 32 | BN42: 32 | EC42: 68
A43: ПМ.00 | B43: Профессиональные модули | D43: =D44+D56 -> 12 | E43: =E44+E56 -> 1 | F43: 9 | J43: 39 | L43: =L44+L56 -> 2799 | N43: =N44+N56 -> 928 | P43: =P44+P56 -> 1871 | Q43: =Q44+Q56 -> 491 | R43: =R44+R56 -> 1380 | U43: 264 | V43: =V44+V56 -> 72 | W43: =W44+W56 -> 144 | X43: =X44+X56 -> 0 | Y43: =Y44+Y56 -> 144 | AA43: =AA44+AA56 -> 0 | AC43: =AC44+AC56 -> 80 | AD43: =AD44+AD56 -> 160 | AE43: =AE44+AE56 -> 0 | AF43: =AF44+AF56 -> 160 | AH43: =AH44+AH56 -> 0 | AJ43: =AJ44+AJ56 -> 88 | AK43: =AK44+AK56 -> 176 | AL43: =AL44+AL56 -> 48 | AM43: =AM44+AM56 -> 128 | AO43: =AO44+AO56 -> 0 | AQ43: =AQ44+AQ56 -> 130 | AR43: =AR44+AR56 -> 260 | AS43: =AS44+AS56 -> 40 | AT43: =AT44+AT56 -> 220 | AV43: =AV44+AV56 -> 0 | AX43: =AX44+AX56 -> 120 | AY43: =AY44+AY56 -> 240 | AZ43: =AZ44+AZ56 -> 144 | BA43: =BA44+BA56 -> 96 | BC43: =BC44+BC56 -> 0 | BE43: =BE44+BE56 -> 180 | BF43: =BF44+BF56 -> 360 | BG43: =BG44+BG56 -> 100 | BH43: =BH44+BH56 -> 260 | BJ43: =BJ44+BJ56 -> 0 | BL43: =BL44+BL56 -> 104 | BM43: =BM44+BM56 -> 208 | BN43: =BN44+BN56 -> 64 | BO43: =BO44+BO56 -> 144 | BQ43: =BQ44+BQ56 -> 0 | BS43: =BS44+BS56 -> 154 | BT43: =BT44+BT56 -> 323 | BU43: =BU44+BU56 -> 95 | BV43: =BV44+BV56 -> 228 | BX43: =BX44+BX56 -> 0 | EC43: =EC44+EC56 -> 1315 | ED43: =ED44+ED56 -> 556
A44: ПМ.01 | B44: Исполнительская деятельность | D44: =LEN(D45)+LEN(D46)+LEN(D48)+LEN(D49)+LEN(D50)+LEN(D51)+LEN(D52)+LEN(D53)+LEN(D54)+LEN(D55) -> 10 | E44: =LEN(E45)+LEN(E46)+LEN(E48)+LEN(E49)+LEN(E50)+LEN(E51)+LEN(E52)+LEN(E53)+LEN(E54)+LEN(E55) -> 0 | F44: 7 | J44: 28 | L44: =SUM(L45:M55) -> 2051 | M44: =SUM(M45:N55) -> 679 | N44: =SUM(N45:O55) -> 679 | O44: =SUM(O45:P55) -> 1372 | P44: =SUM(P45:P55) -> 1372 | Q44: =SUM(Q45:Q55) -> 70 | R44: =SUM(R45:S55) -> 1302 | U44: 113 | V44: =SUM(V45:V55) -> 72 | W44: =SUM(W45:W55) -> 144 | X44: =SUM(X45:X55) -> 0 | Y44: =SUM(Y45:Y55) -> 144 | AA44: =SUM(AA45:AA55) -> 0 | AC44: =SUM(AC45:AC55) -> 80 | AD44: =SUM(AD45:AD55) -> 160 | AE44: =SUM(AE45:AE55) -> 0 | AF44: =SUM(AF45:AF55) -> 160 | AH44: =SUM(AH45:AH55) -> 0 | AJ44: =SUM(AJ45:AJ55) -> 64 | AK44: =SUM(AK45:AK55) -> 128 | AL44: =SUM(AL45:AL55) -> 0 | AM44: =SUM(AM45:AM55) -> 128 | AO44: =SUM(AO45:AO55) -> 0 | AQ44: =SUM(AQ45:AQ55) -> 100 | AR44: =SUM(AR45:AR55) -> 200 | AS44: =SUM(AS45:AS55) -> 0 | AT44: =SUM(AT45:AT55) -> 200 | AV44: =SUM(AV45:AV55) -> 0 | AX44: =SUM(AX45:AX55) -> 64 | AY44: =SUM(AY45:AY55) -> 128 | AZ44: =SUM(AZ45:AZ55) -> 32 | BA44: =SUM(BA45:BA55) -> 96 | BC44: =SUM(BC45:BC55) -> 0 | BE44: =SUM(BE45:BE55) -> 120 | BF44: =SUM(BF45:BF55) -> 240 | BG44: =SUM(BG45:BG55) -> 0 | BH44: =SUM(BH45:BH55) -> 240 | BJ44: =SUM(BJ45:BJ55) -> 0 | BL44: =SUM(BL45:BL55) -> 72 | BM44: =SUM(BM45:BM55) -> 144 | BN44: =SUM(BN45:BN55) -> 0 | BO44: =SUM(BO45:BO55) -> 144 | BQ44: =SUM(BQ45:BQ55) -> 0 | BS44: =SUM(BS45:BS55) -> 107 | BT44: =SUM(BT45:BT55) -> 228 | BU44: =SUM(BU45:BU55) -> 38 | BV44: =SUM(BV45:BV55) -> 190 | BX44: =SUM(BX45:BX55) -> 0 | EC44: =SUM(EC45:EC55) -> 875 | ED44: =SUM(ED45:ED55) -> 497
A45: МДК.01.01. | B45: Специальный инструмент | C45: инд | D45: 23456 | F45: 1 | J45: 78 | L45: =N45+P45 -> 703 | N45: =V45+AC45+AJ45+AQ45+AX45+BE45+BL45+BS45 -> 234 | P45: =W45+AD45+AK45+AR45+AY45+BF45+BM45+BT45 -> 469 | Q45: =X45+AE45+AL45+AS45+AZ45+BG45+BN45+BU45 -> 0 | R45: =Y45+AF45+AM45+AT45+BA45+BH45+BO45+BV45 -> 469 | U45: 77 | V45: 24 | W45: 48 | Y45: 48 | AB45: 95 | AC45: 30 | AD45: 60 | AF45: 60 | AI45: 77 | AJ45: 24 | AK45: 48 | AM45: 48 | AP45: 95 | AQ45: 40 | AR45: 80 | AT45: 80 | AW45: 77 | AX45: 24 | AY45: 48 | BA45: 48 | BD45: 93 | BE45: 40 | BF45: 80 | BH45: 80 | BK45: 77 | BL45: 24 | BM45: 48 | BO45: 48 | BR45: 91 | BS45: 28 | BT45: 57 | BV45: 57 | EC45: 429 | ED45: 40
A46: МДК.01.02. | B46: Ансамблевое исполнительство | C46: мг | D46: 6 | F46: 8 | J46: 57 | L46: =N46+P46 -> 136 | N46: =V46+AC46+AJ46+AQ46+AX46+BE46+BL46+BS46 -> 45 | P46: =W46+AD46+AK46+AR46+AY46+BF46+BM46+BT46 -> 91 | Q46: =X46+AE46+AL46+AS46+AZ46+BG46+BN46+BU46 -> 0 | R46: =Y46+AF46+AM46+AT46+BA46+BH46+BO46+BV46 -> 91 | AW46: 24 | AX46: 8 | AY46: 16 | BA46: 16 | BD46: 30 | BE46: 20 | BF46: 40 | BH46: 40 | BK46: 24 | BL46: 8 | BM46: 16 | BO46: 16 | BR46: 29 | BS46: 9 | BT46: 19 | BV46: 19 | EC46: 71 | ED46: 20
B47: Оркестр | C47: гр | F47: 24 | J47: 1378 | L47: =N47+P47 -> 423 | N47: =V47+AC47+AJ47+AQ47+AX47+BE47+BL47+BS47 -> 141 | P47: =W47+AD47+AK47+AR47+AY47+BF47+BM47+BT47 -> 282 | Q47: =X47+AE47+AL47+AS47+AZ47+BG47+BN47+BU47 -> 0 | R47: =Y47+AF47+AM47+AT47+BA47+BH47+BO47+BV47 -> 282 | U47: 92 | V47: 32 | W47: 64 | Y47: 64 | AB47: 109 | AC47: 30 | AD47: 60 | AF47: 60 | AI47: 54 | AJ47: 24 | AK47: 48 | AM47: 48 | AP47: 56 | AQ47: 20 | AR47: 40 | AT47: 40 | AW47: 44 | BD47: 42 | BK47: 42 | BL47: 16 | BM47: 32 | BO47: 32 | BR47: 63 | BS47: 19 | BT47: 38 | BV47: 38 | ED47: 282
A48: МДК.01.03. | B48: Концертмейстерский класс | C48: инд | F48: 6 | J48: 348 | L48: 112 | N48: 37 | P48: 75 | Q48: 0 | R48: 75 | AI48: 24 | AJ48: 8 | AK48: 16 | AM48: 16 | AP48: 30 | AQ48: 10 | AR48: 20 | AT48: 20 | BD48: 30 | BE48: 10 | BF48: 20 | BH48: 20 | BR48: 27 | BS48: 9 | BT48: 19 | BV48: 19 | EC48: 36 | ED48: 39
A49: МДК.01.04. | B49: Дополнительный инструмент-фортепиано | C49: инд | D49: 57 | F49: 1 | J49: 2346 | L49: 186 | N49: 62 | P49: 124 | Q49: 0 | R49: 124 | U49: 24 | V49: 8 | W49: 16 | Y49: 16 | AB49: 30 | AC49: 10 | AD49: 20 | AF49: 20 | AI49: 24 | AJ49: 8 | AK49: 16 | AM49: 16 | AP49: 30 | AQ49: 10 | AR49: 20 | AT49: 20 | AW49: 24 | AX49: 8 | AY49: 16 | BA49: 16 | BD49: 30 | BE49: 10 | BF49: 20 | BH49: 20 | BK49: 24 | BL49: 8 | BM49: 16 | BO49: 16 | EC49: 124
A50: МДК.01.05 | B50: Дирижирование, чтение оркестровых партитур: дирижирование | C50: инд | D50: 8 | F50: 6 | J50: 57 | L50: 106 | N50: 35 | P50: 71 | Q50: 0 | R50: 71 | AP50: 30 | AW50: 24 | AX50: 8 | AY50: 16 | BA50: 16 | BD50: 30 | BE50: 10 | BF50: 20 | BH50: 20 | BK50: 24 | BL50: 8 | BM50: 16 | BO50: 16 | BR50: 27 | BS50: 9 | BT50: 19 | BV50: 19 | EC50: 71
B51: Дирижирование, чтение оркестровых партитур: чтение оркестровых партитур | C51: инд | J51: 78 | L51: 48 | N51: 13 | P51: 35 | Q51: 0 | R51: 35 | AP51: 30 | AW51: 24 | BD51: 30 | BK51: 24 | BL51: 8 | BM51: 16 | BO51: 16 | BR51: 27 | BS51: 5 | BT51: 19 | BV51: 19 | EC51: 35
A52: МДК.01.06. | B52: История исполнительского искусства, инструментоведение, изучение родственных инструментов: история исполнительского искусства | C52: мг | D52: 8 | J52: 5 | L52: 105 | N52: 35 | P52: 70 | Q52: 70 | R52: 0 | AX52: 16 | AY52: 32 | AZ52: 32 | BR52: 57 | BS52: 19 | BT52: 38 | BU52: 38 | EC52: 70
B53: Инструментоведение | C53: инд | J53: 68 | L53: 58 | N53: 19 | P53: 39 | Q53: 0 | R53: 39 | BE53: 10 | BF53: 20 | BH53: 20 | BR53: 27 | BS53: 9 | BT53: 19 | BV53: 19 | EC53: 39
B54: Изучение родственных инструментов | C54: инд | J54: 1246 | L54: 114 | N54: 38 | P54: 76 | Q54: 0 | R54: 76 | V54: 8 | W54: 16 | Y54: 16 | AC54: 10 | AD54: 20 | AF54: 20 | AQ54: 10 | AR54: 20 | AT54: 20 | BE54: 10 | BF54: 20 | BH54: 20 | BR54: 27 | ED54: 76
B55: Инструментовка | C55: инд | J55: 46 | L55: =N55+P55 -> 60 | N55: =V55+AC55+AJ55+AQ55+AX55+BE55+BL55+BS55 -> 20 | P55: =W55+AD55+AK55+AR55+AY55+BF55+BM55+BT55 -> 40 | Q55: =X55+AE55+AL55+AS55+AZ55+BG55+BN55+BU55 -> 0 | R55: =Y55+AF55+AM55+AT55+BA55+BH55+BO55+BV55 -> 40 | AQ55: 10 | AR55: 20 | AT55: 20 | BD55: 28 | BE55: 10 | BF55: 20 | BH55: 20 | BK55: 24 | ED55: 40
A56: ПМ.02 | B56: Педагогичесская деятельность | D56: =LEN(D57)+LEN(D58)+LEN(D59)+LEN(D60)+LEN(D61)+LEN(D62)+LEN(D63)+LEN(D64)+LEN(D65) -> 2 | E56: =LEN(E57)+LEN(E58)+LEN(E59)+LEN(E60)+LEN(E61)+LEN(E62)+LEN(E63)+LEN(E64)+LEN(E65) -> 1 | F56: =LEN(F57)+LEN(F58)+LEN(F59)+LEN(F60)+LEN(F61)+LEN(F62)+LEN(F63)+LEN(F64)+LEN(F65) -> 2 | J56: =LEN(J57)+LEN(J58)+LEN(J59)+LEN(J60)+LEN(J61)+LEN(J62)+LEN(J63)+LEN(J64)+LEN(J65) -> 11 | L56: =SUM(L57:L65) -> 748 | M56: =SUM(M57:M65) -> 0 | N56: 249 | O56: 0 | P56: 499 | Q56: 421 | R56: 78 | V56: =SUM(V57:V65) -> 0 | W56: =SUM(W57:W65) -> 0 | X56: =SUM(X57:X65) -> 0 | Y56: =SUM(Y57:Y65) -> 0 | AA56: =SUM(AA57:AA65) -> 0 | AC56: =SUM(AC57:AC65) -> 0 | AD56: =SUM(AD57:AD65) -> 0 | AE56: =SUM(AE57:AE65) -> 0 | AF56: =SUM(AF57:AF65) -> 0 | AH56: =SUM(AH57:AH65) -> 0 | AI56: 72 | AJ56: =SUM(AJ57:AJ65) -> 24 | AK56: =SUM(AK57:AK65) -> 48 | AL56: =SUM(AL57:AL65) -> 48 | AM56: =SUM(AM57:AM65) -> 0 | AO56: =SUM(AO57:AO65) -> 0 | AQ56: =SUM(AQ57:AQ65) -> 30 | AR56: =SUM(AR57:AR65) -> 60 | AS56: =SUM(AS57:AS65) -> 40 | AT56: =SUM(AT57:AT65) -> 20 | AV56: =SUM(AV57:AV65) -> 0 | AX56: =SUM(AX57:AX65) -> 56 | AY56: =SUM(AY57:AY65) -> 112 | AZ56: =SUM(AZ57:AZ65) -> 112 | BA56: =SUM(BA57:BA65) -> 0 | BC56: =SUM(BC57:BC65) -> 0 | BE56: =SUM(BE57:BE65) -> 60 | BF56: =SUM(BF57:BF65) -> 120 | BG56: =SUM(BG57:BG65) -> 100 | BH56: =SUM(BH57:BH65) -> 20 | BJ56: =SUM(BJ57:BJ65) -> 0 | BL56: =SUM(BL57:BL65) -> 32 | BM56: =SUM(BM57:BM65) -> 64 | BN56: =SUM(BN57:BN65) -> 64 | BO56: =SUM(BO57:BO65) -> 0 | BQ56: =SUM(BQ57:BQ65) -> 0 | BS56: =SUM(BS57:BS65) -> 47 | BT56: =SUM(BT57:BT65) -> 95 | BU56: =SUM(BU57:BU65) -> 57 | BV56: =SUM(BV57:BV65) -> 38 | BX56: =SUM(BX57:BX65) -> 0 | EC56: =SUM(EC57:EC65) -> 440 | ED56: =SUM(ED57:ED65) -> 59
A57: МДК.02.01. | B57: Педагогические основы преподавания творческих дисциплин: основы педагогики | C57: гр | J57: 34 | L57: =N57+P57 -> 108 | N57: =V57+AC57+AJ57+AQ57+AX57+BE57+BL57+BS57 -> 36 | P57: =W57+AD57+AK57+AR57+AY57+BF57+BM57+BT57 -> 72 | Q57: =X57+AE57+AL57+AS57+AZ57+BG57+BN57+BU57 -> 72 | R57: =Y57+AF57+AM57+AT57+BA57+BH57+BO57+BV57 -> 0 | AI57: 48 | AJ57: 16 | AK57: 32 | AL57: 32 | AP57: 60 | AQ57: 20 | AR57: 40 | AS57: 40 | EC57: 72
B58: Педагогические основы преподавания творческих дисциплин: основы системы музыкального образования | C58: гр | D58: 6 | J58: 5 | L58: =N58+P58 -> 108 | N58: =V58+AC58+AJ58+AQ58+AX58+BE58+BL58+BS58 -> 36 | P58: =W58+AD58+AK58+AR58+AY58+BF58+BM58+BT58 -> 72 | Q58: =X58+AE58+AL58+AS58+AZ58+BG58+BN58+BU58 -> 72 | R58: =Y58+AF58+AM58+AT58+BA58+BH58+BO58+BV58 -> 0 | AW58: 48 | AX58: 16 | AY58: 32 | AZ58: 32 | BD58: 60 | BE58: 20 | BF58: 40 | BG58: 40 | EC58: 72
B59: Педагогические основы преподавания творческих дисциплин: возрастная психология | C59: р | J59: 56 | L59: 54 | N59: 18 | P59: 36 | Q59: 36 | R59: 0 | AW59: 24 | AX59: 8 | AY59: 16 | AZ59: 16 | BD59: 30 | BE59: 10 | BF59: 20 | BG59: 20 | EC59: 36
B60: Педагогические основы преподавания творческих ди сциплин: основы организации учебного процесса | C60: гр | J60: 7 | L60: 48 | N60: 16 | P60: 32 | Q60: 32 | R60: 0 | BK60: 24 | BL60: 16 | BM60: 32 | BN60: 32 | BR60: 27 | EC60: 32
B61: Педагогические основы преподавания творческих дисциплин: основы психологии музыкального восприятия | C61: гр | F61: 8 | L61: 57 | N61: 19 | P61: 38 | Q61: 38 | R61: 0 | BR61: 57 | BS61: 19 | BT61: 38 | BU61: 38 | EC61: 38
B62: Изучение репертуара ДШИ | C62: инд | J62: 46 | L62: 60 | N62: 20 | P62: 40 | Q62: 0 | R62: 40 | U62: 24 | AB62: 30 | AQ62: 10 | AR62: 20 | AT62: 20 | BE62: 10 | BF62: 20 | BH62: 20 | ED62: 40
A63: МДК.02.02. | B63: Учебно-методическое обеспечение учебного процесса: методика обучения игре на инструменте | C63: мг | F63: 6 | J63: 58 | L63: 184 | N63: 61 | P63: 123 | Q63: 123 | R63: 0 | AP63: 30 | AW63: 72 | AX63: 32 | AY63: 64 | AZ63: 64 | BD63: 60 | BE63: 20 | BF63: 40 | BG63: 40 | BS63: 9 | BT63: 19 | BU63: 19 | EC63: 104 | ED63: 19
B64: Учебно- методическое обеспечение учебного процесса: физическая культура (ритмика) | C64: гр | E64: 8 | L64: 57 | N64: 19 | P64: 38 | Q64: 0 | R64: 38 | BR64: 57 | BS64: 19 | BT64: 38 | BV64: 38 | EC64: 38
B65: Учебно-методическое обеспечение учебного процесса: изучение методической литературы по вопросам педагогики и методики | C65: мг | D65: 7 | J65: 3 | L65: 72 | N65: 24 | P65: 48 | Q65: 48 | R65: 0 | AI65: 24 | AJ65: 8 | AK65: 16 | AL65: 16 | BK65: 48 | BL65: 16 | BM65: 32 | BN65: 32 | EC65: 48
A66: УП | B66: Учебная практика | D66: =LEN(D67)+LEN(D47)+LEN(D68)+LEN(D69) -> 0 | E66: =LEN(E67)+LEN(E47)+LEN(E68)+LEN(E69) -> 0 | F66: 0 | J66: 11 | L66: =SUM(L67:L69) -> 1026 | M66: 0 | N66: 342 | O66: 0 | P66: 684 | Q66: 0 | R66: 684 | V66: =SUM(V67:V69) -> 16 | W66: =SUM(W67:W69) -> 32 | X66: =SUM(X67:X69) -> 0 | Y66: =SUM(Y67:Y69) -> 32 | AA66: =SUM(AA67:AA69) -> 0 | AC66: =SUM(AC67:AC69) -> 30 | AD66: =SUM(AD67:AD69) -> 60 | AE66: =SUM(AE67:AE69) -> 0 | AF66: =SUM(AF67:AF69) -> 60 | AH66: =SUM(AH67:AH69) -> 0 | AJ66: =SUM(AJ67:AJ69) -> 24 | AK66: =SUM(AK67:AK69) -> 48 | AL66: =SUM(AL67:AL69) -> 0 | AM66: =SUM(AM67:AM69) -> 48 | AO66: =SUM(AO67:AO69) -> 0 | AQ66: =SUM(AQ67:AQ69) -> 40 | AR66: =SUM(AR67:AR69) -> 80 | AS66: =SUM(AS67:AS69) -> 0 | AT66: =SUM(AT67:AT69) -> 80 | AV66: =SUM(AV67:AV69) -> 0 | AX66: =SUM(AX67:AX69) -> 48 | AY66: =SUM(AY67:AY69) -> 96 | AZ66: =SUM(AZ67:AZ69) -> 0 | BA66: =SUM(BA67:BA69) -> 96 | BC66: =SUM(BC67:BC69) -> 0 | BE66: =SUM(BE67:BE69) -> 60 | BF66: =SUM(BF67:BF69) -> 120 | BG66: =SUM(BG67:BG69) -> 0 | BH66: =SUM(BH67:BH69) -> 120 | BJ66: =SUM(BJ67:BJ69) -> 0 | BL66: =SUM(BL67:BL69) -> 48 | BM66: =SUM(BM67:BM69) -> 96 | BN66: =SUM(BN67:BN69) -> 0 | BO66: =SUM(BO67:BO69) -> 96 | BQ66: =SUM(BQ67:BQ69) -> 0 | BS66: =SUM(BS67:BS69) -> 76 | BT66: =SUM(BT67:BT69) -> 152 | BU66: =SUM(BU67:BU69) -> 0 | BV66: =SUM(BV67:BV69) -> 152 | BX66: =SUM(BX67:BX69) -> 0 | EC66: =SUM(EC67:EC69) -> 684 | ED66: =SUM(ED67:ED69) -> 0
A67: УП 01 | B67: Оркестр | C67: гр | J67: 12345678 | L67: =N67+P67 -> 864 | N67: =V67+AC67+AJ67+AQ67+AX67+BE67+BL67+BS67 -> 288 | P67: =W67+AD67+AK67+AR67+AY67+BF67+BM67+BT67 -> 576 | Q67: 0 | R67: 576 | V67: 16 | W67: 32 | Y67: 32 | AC67: 30 | AD67: 60 | AF67: 60 | AJ67: 24 | AK67: 48 | AM67: 48 | AQ67: 40 | AR67: 80 | AT67: 80 | AX67: 48 | AY67: 96 | BA67: 96 | BE67: 60 | BF67: 120 | BH67: 120 | BL67: 32 | BM67: 64 | BO67: 64 | BS67: 38 | BT67: 76 | BV67: 76 | EC67: 576
A68: УП.02 | B68: Концертмейстерская подготовка | C68: инд | J68: 8 | L68: =N68+P68 -> 57 | N68: =V68+AC68+AJ68+AQ68+AX68+BE68+BL68+BS68 -> 19 | P68: 38 | Q68: 0 | R68: 38 | BD68: 30 | BR68: 30 | BS68: 19 | BT68: 38 | BV68: 38 | EC68: 38
A69: УП.03 | B69: Учебная практика по педагогической работе | C69: инд | J69: 78 | L69: =N69+P69 -> 105 | N69: =V69+AC69+AJ69+AQ69+AX69+BE69+BL69+BS69 -> 35 | P69: 70 | Q69: 0 | R69: 70 | AW69: 48 | BD69: 60 | BK69: 48 | BL69: 16 | BM69: 32 | BO69: 32 | BR69: 57 | BS69: 19 | BT69: 38 | BV69: 38 | EC69: 70
A70: ПП | B70: Производственная (по профилю специальности) практика | N70: час | P70: =P71+P72 -> 180 | Q70: нед | R70: =R71+R72 -> 5 | W70: =SUM(W71:W74) -> 20 | Y70: =SUM(Y71:Y72) -> 20 | AD70: =SUM(AD71:AD72) -> 25 | AF70: =SUM(AF71:AF72) -> 25 | AK70: =SUM(AK71:AK72) -> 20 | AM70: =SUM(AM71:AM72) -> 20 | AR70: =SUM(AR71:AR72) -> 25 | AT70: =SUM(AT71:AT72) -> 25 | AY70: =SUM(AY71:AY72) -> 20 | BA70: =SUM(BA71:BA72) -> 20 | BF70: =SUM(BF71:BF72) -> 25 | BH70: =SUM(BH71:BH72) -> 25 | BM70: =SUM(BM71:BM72) -> 20 | BO70: =SUM(BO71:BO72) -> 20 | BT70: =SUM(BT71:BT72) -> 25 | BV70: =SUM(BV71:BV72) -> 25 | BY70: час | CB70: нед | CF70: час | CI70: нед | CM70: час | CP70: нед | CT70: час | CW70: нед | DA70: час | DD70: нед | DH70: час | DK70: нед | DO70: час | DR70: нед | DV70: час | DY70: нед
A71: ПП.01 | B71: Исполнительская (по профилю специальности) | N71: час | P71: =W71+AD71+AK71+AR71+AY71+BF71+BM71+BT71 -> 144 | Q71: нед | R71: 4 | W71: 16 | Y71: 16 | AD71: 20 | AF71: 20 | AK71: 16 | AM71: 16 | AR71: 20 | AT71: 20 | AY71: 16 | BA71: 16 | BF71: 20 | BH71: 20 | BM71: 16 | BO71: 16 | BT71: 20 | BV71: 20
A72: ПП.02 | B72: Педагогическая практика | N72: час | P72: =W72+AD72+AK72+AR72+AY72+BF72+BM72+BT72 -> 36 | Q72: нед | R72: 1 | W72: 4 | Y72: 4 | AD72: 5 | AF72: 5 | AK72: 4 | AM72: 4 | AR72: 5 | AT72: 5 | AY72: 4 | BA72: 4 | BF72: 5 | BH72: 5 | BM72: 4 | BO72: 4 | BT72: 5 | BV72: 5
A73: ПДП.00 | B73: Преддипломная практика | N73: час | P73: =W73+AD73+AK73+AR73+AY73+BF73+BM73+BT73 -> 36 | Q73: нед | R73: 1 | BM73: 16 | BO73: 16 | BT73: 20 | BV73: 20
A74: ГИА.00 | B74: Государственная (итоговая) аттестация | Q74: нед | R74: 4 | BU74: нед | BV74: 4 | CB74: нед | CI74: нед | CP74: нед | CW74: нед | DD74: нед | DK74: нед | DR74: нед | DY74: нед
A75: ГИА.01 | B75: Подготовка выпускной квалификационной работы | Q75: нед | R75: 1 | BU75: нед | BV75: 1 | CB75: нед | CI75: нед | CP75: нед | CW75: нед | DD75: нед | DK75: нед | DR75: нед | DY75: нед
A76: ГИА.02 | B76: Защита выпускной квалификационной работы | Q76: нед | R76: 1 | BU76: нед | BV76: 1 | CB76: нед | CI76: нед | CP76: нед | CW76: нед | DD76: нед | DK76: нед | DR76: нед | DY76: нед
A77: ГИА.03 | B77: Государственный экзамен(по видам инструментов) | Q77: нед | R77: 1 | BU77: нед | BV77: 1 | CB77: нед | CI77: нед | CP77: нед | CW77: нед | DD77: нед | DK77: нед | DR77: нед | DY77: нед
A78: ГИА.04 | B78: Государственный экзамен | Q78: нед | R78: 1 | BU78: нед | BV78: 1 | CB78: нед | CI78: нед | CP78: нед | CW78: нед | DD78: нед | DK78: нед | DR78: нед | DY78: нед
B79: ВСЕГО ПО ДИСЦИПЛИНАМ И МДК | D79: 28 | E79: =E9+E27+E34+E44+E56+E66 -> 8 | F79: 26 | G79: =G9+G27+G34+G44+G56+G66 -> 0 | H79: =H9+H27+H34+H44+H56+H66 -> 0 | I79: =I9+I27+I34+I44+I56+I66 -> 0 | J79: 86 | L79: 7722 | M79: =SUM(M10,#REF!,M27,M34,M44,M56,M66) ->  | N79: 2574 | O79: =SUM(O10,#REF!,O27,O34,O44,O56,O66) ->  | P79: 5148 | Q79: 2347 | R79: 2801 | U79: 864 | EC79: 4572 | ED79: 576
B80: Экзаменов | U80: 1 | X80: =SUM(IF(IFERROR(MID(D14:D19,SEARCH(1,D14:D19),1),0)="1",1,0),IF(IFERROR(MID(D21:D25,SEARCH(1,D21:D25),1),0)="1",1,0),IF(IFERROR(MID(D28:D32,SEARCH(1,D28:D32),1),0)="1",1,0),IF(IFERROR(MID(D35:D42,SEARCH(1,D35:D42),1),0)="1",1,0),IF(IFERROR(MID(D45:D55,SEARCH(1,D45:D55),1),0)="1",1,0),IF(IFERROR(MID(D57:D65,SEARCH(1,D57:D65),1),0)="1",1,0),IF(IFERROR(MID(D67:D69,SEARCH(1,D67:D69),1),0)="1",1,0)) -> 1 | AB80: 5 | AE80: =SUM(IF(IFERROR(MID(D14:D19,SEARCH(2,D14:D19),1),0)="2",1,0),IF(IFERROR(MID(D21:D25,SEARCH(2,D21:D25),1),0)="2",1,0),IF(IFERROR(MID(D28:D32,SEARCH(2,D28:D32),1),0)="2",1,0),IF(IFERROR(MID(D35:D42,SEARCH(2,D35:D42),1),0)="2",1,0),IF(IFERROR(MID(D45:D55,SEARCH(2,D45:D55),1),0)="2",1,0),IF(IFERROR(MID(D57:D65,SEARCH(2,D57:D65),1),0)="2",1,0),IF(IFERROR(MID(D67:D69,SEARCH(2,D67:D69),1),0)="2",1,0)) -> 5 | AI80: 3 | AL80: =SUM(IF(IFERROR(MID(D14:D19,SEARCH(3,D14:D19),1),0)="3",1,0),IF(IFERROR(MID(D21:D25,SEARCH(3,D21:D25),1),0)="3",1,0),IF(IFERROR(MID(D28:D32,SEARCH(3,D28:D32),1),0)="3",1,0),IF(IFERROR(MID(D35:D42,SEARCH(3,D35:D42),1),0)="3",1,0),IF(IFERROR(MID(D45:D55,SEARCH(3,D45:D55),1),0)="3",1,0),IF(IFERROR(MID(D57:D65,SEARCH(3,D57:D65),1),0)="3",1,0),IF(IFERROR(MID(D67:D69,SEARCH(3,D67:D69),1),0)="3",1,0)) -> 3 | AP80: 5 | AS80: 5 | AW80: 3 | AZ80: =SUM(IF(IFERROR(MID(D14:D19,SEARCH(5,D14:D19),1),0)="5",1,0),IF(IFERROR(MID(D21:D25,SEARCH(5,D21:D25),1),0)="5",1,0),IF(IFERROR(MID(D28:D32,SEARCH(5,D28:D32),1),0)="5",1,0),IF(IFERROR(MID(D35:D42,SEARCH(5,D35:D42),1),0)="5",1,0),IF(IFERROR(MID(D45:D55,SEARCH(5,D45:D55),1),0)="5",1,0),IF(IFERROR(MID(D57:D65,SEARCH(5,D57:D65),1),0)="5",1,0),IF(IFERROR(MID(D67:D69,SEARCH(5,D67:D69),1),0)="5",1,0)) -> 3 | BD80: 4 | BG80: =SUM(IF(IFERROR(MID(D14:D19,SEARCH(6,D14:D19),1),0)="6",1,0),IF(IFERROR(MID(D21:D25,SEARCH(6,D21:D25),1),0)="6",1,0),IF(IFERROR(MID(D28:D32,SEARCH(6,D28:D32),1),0)="6",1,0),IF(IFERROR(MID(D35:D42,SEARCH(6,D35:D42),1),0)="6",1,0),IF(IFERROR(MID(D45:D55,SEARCH(6,D45:D55),1),0)="6",1,0),IF(IFERROR(MID(D57:D65,SEARCH(6,D57:D65),1),0)="6",1,0),IF(IFERROR(MID(D67:D69,SEARCH(6,D67:D69),1),0)="6",1,0)) -> 4 | BK80: 4 | BN80: =SUM(IF(IFERROR(MID(D14:D19,SEARCH(7,D14:D19),1),0)="7",1,0),IF(IFERROR(MID(D21:D25,SEARCH(7,D21:D25),1),0)="7",1,0),IF(IFERROR(MID(D28:D32,SEARCH(7,D28:D32),1),0)="7",1,0),IF(IFERROR(MID(D35:D42,SEARCH(7,D35:D42),1),0)="7",1,0),IF(IFERROR(MID(D45:D55,SEARCH(7,D45:D55),1),0)="7",1,0),IF(IFERROR(MID(D57:D65,SEARCH(7,D57:D65),1),0)="7",1,0),IF(IFERROR(MID(D67:D69,SEARCH(7,D67:D69),1),0)="7",1,0)) -> 4 | BR80: 3 | BU80: 3
B81: Зачётов | U81: 1 | X81: =SUM(IF(IFERROR(MID(E14:E19,SEARCH(1,E14:E19),1),0)="1",1,0),IF(IFERROR(MID(E21:E25,SEARCH(1,E21:E25),1),0)="1",1,0),IF(IFERROR(MID(E28:E32,SEARCH(1,E28:E32),1),0)="1",1,0),IF(IFERROR(MID(E35:E42,SEARCH(1,E35:E42),1),0)="1",1,0),IF(IFERROR(MID(E45:E55,SEARCH(1,E45:E55),1),0)="1",1,0),IF(IFERROR(MID(E57:E65,SEARCH(1,E57:E65),1),0)="1",1,0),IF(IFERROR(MID(E67:E69,SEARCH(1,E67:E69),1),0)="1",1,0)) -> 0 | Y81: 1 | AB81: 1 | AE81: 1 | AI81: 1 | AL81: 1 | AP81: 1 | AS81: 1 | AW81: 1 | AZ81: =SUM(IF(IFERROR(MID(E14:E19,SEARCH(5,E14:E19),1),0)="5",1,0),IF(IFERROR(MID(E21:E25,SEARCH(5,E21:E25),1),0)="5",1,0),IF(IFERROR(MID(E28:E32,SEARCH(5,E28:E32),1),0)="5",1,0),IF(IFERROR(MID(E35:E42,SEARCH(5,E35:E42),1),0)="5",1,0),IF(IFERROR(MID(E45:E55,SEARCH(5,E45:E55),1),0)="5",1,0),IF(IFERROR(MID(E57:E65,SEARCH(5,E57:E65),1),0)="5",1,0),IF(IFERROR(MID(E67:E69,SEARCH(5,E67:E69),1),0)="5",1,0)) -> 1 | BD81: 1 | BG81: =SUM(IF(IFERROR(MID(E14:E19,SEARCH(6,E14:E19),1),0)="6",1,0),IF(IFERROR(MID(E21:E25,SEARCH(6,E21:E25),1),0)="6",1,0),IF(IFERROR(MID(E28:E32,SEARCH(6,E28:E32),1),0)="6",1,0),IF(IFERROR(MID(E35:E42,SEARCH(6,E35:E42),1),0)="6",1,0),IF(IFERROR(MID(E45:E55,SEARCH(6,E45:E55),1),0)="6",1,0),IF(IFERROR(MID(E57:E65,SEARCH(6,E57:E65),1),0)="6",1,0),IF(IFERROR(MID(E67:E69,SEARCH(6,E67:E69),1),0)="6",1,0)) -> 1 | BK81: 1 | BN81: =SUM(IF(IFERROR(MID(E14:E19,SEARCH(7,E14:E19),1),0)="7",1,0),IF(IFERROR(MID(E21:E25,SEARCH(7,E21:E25),1),0)="7",1,0),IF(IFERROR(MID(E28:E32,SEARCH(7,E28:E32),1),0)="7",1,0),IF(IFERROR(MID(E35:E42,SEARCH(7,E35:E42),1),0)="7",1,0),IF(IFERROR(MID(E45:E55,SEARCH(7,E45:E55),1),0)="7",1,0),IF(IFERROR(MID(E57:E65,SEARCH(7,E57:E65),1),0)="7",1,0),IF(IFERROR(MID(E67:E69,SEARCH(7,E67:E69),1),0)="7",1,0)) -> 1 | BR81: 1 | BU81: =SUM(IF(IFERROR(MID(E14:E19,SEARCH(8,E14:E19),1),0)="8",1,0),IF(IFERROR(MID(E21:E25,SEARCH(8,E21:E25),1),0)="8",1,0),IF(IFERROR(MID(E28:E32,SEARCH(8,E28:E32),1),0)="8",1,0),IF(IFERROR(MID(E35:E42,SEARCH(8,E35:E42),1),0)="8",1,0),IF(IFERROR(MID(E45:E55,SEARCH(8,E45:E55),1),0)="8",1,0),IF(IFERROR(MID(E57:E65,SEARCH(8,E57:E65),1),0)="8",1,0),IF(IFERROR(MID(E67:E69,SEARCH(8,E67:E69),1),0)="8",1,0)) -> 1
B82: Дифференицрованных зачётов | U82: 3 | X82: =SUM(IF(IFERROR(MID(F14:F19,SEARCH(1,F14:F19),1),0)="1",1,0),IF(IFERROR(MID(F21:F25,SEARCH(1,F21:F25),1),0)="1",1,0),IF(IFERROR(MID(F28:I32,SEARCH(1,F28:I32),1),0)="1",1,0),IF(IFERROR(MID(F35:F42,SEARCH(1,F35:F42),1),0)="1",1,0),IF(IFERROR(MID(F45:F55,SEARCH(1,F45:F55),1),0)="1",1,0),IF(IFERROR(MID(F57:F65,SEARCH(1,F57:G65),1),0)="1",1,0),IF(IFERROR(MID(F67:F69,SEARCH(1,F67:F69),1),0)="1",1,0)) -> 4 | AB82: 4 | AE82: =SUM(IF(IFERROR(MID(F14:F19,SEARCH(2,F14:F19),1),0)="2",1,0),IF(IFERROR(MID(F21:F25,SEARCH(2,F21:F25),1),0)="2",1,0),IF(IFERROR(MID(F28:H32,SEARCH(2,F28:I32),1),0)="2",1,0),IF(IFERROR(MID(F35:F42,SEARCH(2,F35:F42),1),0)="2",1,0),IF(IFERROR(MID(F45:F55,SEARCH(2,F45:F55),1),0)="2",1,0),IF(IFERROR(MID(F57:F65,SEARCH(2,F57:G65),1),0)="2",1,0),IF(IFERROR(MID(F67:F69,SEARCH(2,F67:F69),1),0)="2",1,0)) -> 4 | AI82: 1 | AL82: =SUM(IF(IFERROR(MID(F14:F19,SEARCH(3,F14:F19),1),0)="3",1,0),IF(IFERROR(MID(F21:F25,SEARCH(3,F21:F25),1),0)="3",1,0),IF(IFERROR(MID(F28:H32,SEARCH(3,F28:F32),1),0)="3",1,0),IF(IFERROR(MID(F35:F42,SEARCH(3,F35:F42),1),0)="3",1,0),IF(IFERROR(MID(F45:F55,SEARCH(3,F45:F55),1),0)="3",1,0),IF(IFERROR(MID(F57:F65,SEARCH(3,F57:F65),1),0)="3",1,0),IF(IFERROR(MID(F67:F69,SEARCH(3,F67:F69),1),0)="3",1,0)) -> 1 | AP82: 5 | AS82: =SUM(IF(IFERROR(MID(F14:F19,SEARCH(4,F14:F19),1),0)="4",1,0),IF(IFERROR(MID(F21:F25,SEARCH(4,F21:F25),1),0)="4",1,0),IF(IFERROR(MID(F28:F32,SEARCH(4,F28:F32),1),0)="4",1,0),IF(IFERROR(MID(F35:F42,SEARCH(4,F35:F42),1),0)="4",1,0),IF(IFERROR(MID(F45:F55,SEARCH(4,F45:F55),1),0)="4",1,0),IF(IFERROR(MID(F57:F65,SEARCH(4,F57:F65),1),0)="4",1,0),IF(IFERROR(MID(F67:F69,SEARCH(4,F67:F69),1),0)="4",1,0)) -> 5 | AW82: 1 | AZ82: =SUM(IF(IFERROR(MID(F14:F19,SEARCH(5,F14:F19),1),0)="5",1,0),IF(IFERROR(MID(F21:F25,SEARCH(5,F21:F25),1),0)="5",1,0),IF(IFERROR(MID(F28:F32,SEARCH(5,F28:F32),1),0)="5",1,0),IF(IFERROR(MID(F35:F42,SEARCH(5,F35:F42),1),0)="5",1,0),IF(IFERROR(MID(F45:F55,SEARCH(5,F45:F55),1),0)="5",1,0),IF(IFERROR(MID(F57:F65,SEARCH(5,F57:F65),1),0)="5",1,0),IF(IFERROR(MID(F67:F69,SEARCH(5,F67:F69),1),0)="5",1,0)) -> 1 | BD82: 3 | BG82: =SUM(IF(IFERROR(MID(F14:F19,SEARCH(6,F14:F19),1),0)="6",1,0),IF(IFERROR(MID(F21:F25,SEARCH(6,F21:F25),1),0)="6",1,0),IF(IFERROR(MID(F28:F32,SEARCH(6,F28:F32),1),0)="6",1,0),IF(IFERROR(MID(F35:F42,SEARCH(6,F35:F42),1),0)="6",1,0),IF(IFERROR(MID(F45:F55,SEARCH(6,F45:F55),1),0)="6",1,0),IF(IFERROR(MID(F57:F65,SEARCH(6,F57:F65),1),0)="6",1,0),IF(IFERROR(MID(F67:F69,SEARCH(6,F67:F69),1),0)="6",1,0)) -> 3 | BK82: 2 | BN82: =SUM(IF(IFERROR(MID(F14:F19,SEARCH(7,F14:F19),1),0)="7",1,0),IF(IFERROR(MID(F21:F25,SEARCH(7,F21:F25),1),0)="7",1,0),IF(IFERROR(MID(F28:F32,SEARCH(7,F28:F32),1),0)="7",1,0),IF(IFERROR(MID(F35:F42,SEARCH(7,F35:F42),1),0)="7",1,0),IF(IFERROR(MID(F45:F55,SEARCH(7,F45:F55),1),0)="7",1,0),IF(IFERROR(MID(F57:F65,SEARCH(7,F57:F65),1),0)="7",1,0),IF(IFERROR(MID(F67:F69,SEARCH(7,F67:F69),1),0)="7",1,0)) -> 2 | BR82: 6 | BU82: =SUM(IF(IFERROR(MID(F14:F19,SEARCH(8,F14:F19),1),0)="8",1,0),IF(IFERROR(MID(F21:F25,SEARCH(8,F21:F25),1),0)="8",1,0),IF(IFERROR(MID(F28:F32,SEARCH(8,F28:F32),1),0)="8",1,0),IF(IFERROR(MID(F35:F42,SEARCH(8,F35:F42),1),0)="8",1,0),IF(IFERROR(MID(F45:F55,SEARCH(8,F45:F55),1),0)="8",1,0),IF(IFERROR(MID(F57:F65,SEARCH(8,F57:F65),1),0)="8",1,0),IF(IFERROR(MID(F67:F69,SEARCH(8,F67:F69),1),0)="8",1,0)) -> 6
B83: Контрольных работ (итоговые письм. классные)
B84: Контрольных работ (домашние)

Sheet Кабинеты
B1: № | C1: Наименование
B2: 1 | C2: Кабинеты: русского языка и литературы;
B3: 2 | C3: математики и информатики;
B4: 3 | C4: истории, географии и обществознания;
B5: 4 | C5: гуманитарных и социально-экономических дисциплин;
B6: 5 | C6: мировой художественной культуры;
B7: 6 | C7: музыкально-теоретических дисциплин;
B8: 7 | C8: музыкальной литературы.
B9: 8 | C9: Учебные классы: для групповых и индивидуальных занятий;
B10: 9 | C10: для проведения оркестровых и ансамблевых занятий;
B11: 10 | C11: для занятий по междисциплинарному курсу «Оркестровый класс, изучение родственных инструментов» со специализированным оборудованием;
B12: 11 | C12: для занятий по междисциплинарному курсу «Дирижирование и чтение оркестровых партитур», оснащенные зеркалами и двумя роялями.
B13: 12 | C13: Спортивный комплекс: спортивный зал; место для стрельбы.
B14: 13 | C14: Залы: концертный зал от 100 посадочных мест с концертными роялями, пультами и звукотехническим оборудованием, органом; малый концертный зал от 30 посадочных мест с концертным роялем
B15: 14 | C15: библиотека, читальный зал с выходом в сеть Интернет;
B16: 15 | C16: помещения для работы со специализированными материалами (фонотека, видеотека), соответствующими профилю подготовки.

Sheet Start (hidden)
